bitfinex/quotes_BTCUSD_20260125
["timestamp","ask_amount","ask_price","bid_price","bid_amount"]
[1769313834331,0.03,88992.0,88986.0,0.29358471]
[1769313835668,0.03,88991.0,88986.0,0.29358471]
[1769313836698,0.03,88990.0,88986.0,0.29318165]
[1769313836894,0.03,88990.0,88986.0,0.28017535]
[1769313837117,0.03,88990.0,88987.0,0.31952066]
[1769313837256,0.03,88990.0,88987.0,0.9371654]
[1769313837463,0.03,88990.0,88987.0,0.92675524]
[1769313837738,0.03,88998.0,88987.0,0.90593012]
[1769313837941,0.03,88998.0,88987.0,0.88770289]
[1769313838132,0.03,88998.0,88987.0,0.87468044]
[1769313838338,0.03,88998.0,88987.0,0.87461178]
[1769313838543,0.03,88998.0,88987.0,0.86162934]
[1769313838844,0.03,88998.0,88987.0,0.83813517]
[1769313838981,0.03,88998.0,88987.0,0.82508172]
[1769313839204,0.03,88998.0,88987.0,0.80680563]
[1769313839401,0.03,88998.0,88987.0,0.79375038]
[1769313840285,0.03,88998.0,88977.0,0.01123885]
[1769313840484,0.03,88998.0,88980.0,0.63065519]
[1769313840685,0.03,88998.0,88983.0,0.31952066]
[1769313840864,0.03,88998.0,88985.0,0.31952066]
[1769313841114,0.03,89000.0,88988.0,0.63065519]
[1769313842115,0.03,89001.0,88988.0,0.63065519]
[1769313842957,0.14234402,89001.0,88988.0,0.63065519]
[1769313843174,0.03,88999.0,88988.0,0.63065519]
[1769313843527,0.14234402,88999.0,88988.0,0.63065519]
[1769313843730,0.03,88997.0,88988.0,0.63065519]
[1769313843933,0.03,88997.0,88988.0,0.95699952]
[1769313844134,0.03,88997.0,88979.0,0.0112386]
[1769313844781,0.14234402,89000.0,88982.0,0.32634433]
[1769313844995,0.03,88998.0,88985.0,0.658111]
[1769313845237,0.03,88998.0,88986.0,0.9894328]
[1769313845391,0.03,88998.0,88986.0,0.98445533]
[1769313846449,0.03,88997.0,88986.0,0.98445533]
[1769313847622,0.03,89001.0,88986.0,0.32634433]
[1769313847827,0.03,89001.0,88987.0,0.658111]
[1769313848636,0.03,89001.0,88987.0,0.32634433]
[1769313848845,0.03,89000.0,88990.0,0.658111]
[1769313849024,0.03,89000.0,88991.0,0.658111]
[1769313850101,0.0001035,89004.0,88991.0,0.658111]
[1769313850102,0.03,88999.0,88991.0,0.658111]
[1769313851146,0.03,88998.0,88991.0,0.658111]
[1769313852175,0.03,88997.0,88991.0,0.658111]
[1769313853103,0.03,89002.0,88991.0,0.658111]
[1769313853942,0.03,89002.0,88992.0,0.0022135]
[1769313854172,0.03,89003.0,88992.0,0.0022135]
[1769313855247,0.03,89002.0,88992.0,0.0022135]
[1769313855909,0.01123494,89008.0,88992.0,0.0022135]
[1769313856121,0.39883767,89009.0,88992.0,0.0022135]
[1769313856335,0.03,89007.0,88992.0,0.0022135]
[1769313856791,0.03,89007.0,88992.0,0.34652638]
[1769313857014,0.03,89007.0,88993.0,0.6699344]
[1769313857248,0.03,89008.0,88993.0,0.66771446]
[1769313857461,0.32447833,89009.0,88993.0,0.66771446]
[1769313857462,0.03,89006.0,88993.0,0.66771446]
[1769313857671,0.03,89004.0,88993.0,0.66771446]
[1769313858755,0.03,89003.0,88993.0,0.66771446]
[1769313859178,0.31960084,89003.0,88993.0,0.66771446]
[1769313860092,0.11670112,89003.0,88993.0,0.66771446]
[1769313864149,0.11670112,89003.0,88992.0,0.34652638]
[1769313865306,0.11670112,89003.0,88988.0,0.66771446]
[1769313865501,0.28960084,89000.0,88988.0,0.66771446]
[1769313865623,0.03,88999.0,88982.0,0.0451073]
[1769313866275,0.03,88999.0,88982.0,0.0001473]
[1769313866276,0.04123608,88999.0,88982.0,0.0001473]
[1769313866477,0.03,88991.0,88982.0,0.0001473]
[1769313883281,0.03,88990.0,88982.0,0.0001473]
[1769313884160,0.03,88989.0,88982.0,0.0001473]
[1769313885292,0.03,89009.0,88984.0,0.69915598]
[1769313885523,0.03,89007.0,88986.0,0.69915598]
[1769313885747,0.03,89005.0,88986.0,0.69915598]
[1769313886202,0.03,89003.0,88986.0,0.69915598]
[1769313887280,0.03,89003.0,88989.0,0.33684118]
[1769313887488,0.03,89003.0,88990.0,0.69915598]
[1769313887704,0.03,88999.0,88990.0,0.69915598]
[1769313887907,0.03,88989.0,88982.0,0.0001473]
[1769313888396,0.33240645,88998.0,88982.0,0.0001473]
[1769313888841,0.03,88997.0,88983.0,0.0015822]
[1769313889044,0.03,88997.0,88982.0,0.00173422]
[1769313889243,0.34864503,88995.0,88982.0,0.00173422]
[1769313889447,0.34864503,88995.0,88982.0,0.0001473]
[1769313893673,0.03,88991.0,88982.0,0.0001473]
[1769313896039,0.03,88989.0,88982.0,0.0001473]
[1769313896258,0.04376142,88989.0,88982.0,0.0001473]
[1769313900713,0.03,88989.0,88982.0,0.0001473]
[1769313903089,0.03,88991.0,88982.0,0.0001473]
[1769313906786,0.30347313,89000.0,88983.0,0.00113415]
[1769313906993,0.14235714,88999.0,88983.0,0.32174388]
[1769313907144,0.14235714,88999.0,88982.0,0.00240526]
[1769313907145,0.03,88999.0,88986.0,0.71538795]
[1769313907348,0.03,88999.0,88987.0,0.00520202]
[1769313907552,0.03,88999.0,88987.0,0.00243513]
[1769313907762,0.03,88999.0,88986.0,0.71538795]
[1769313907961,0.03,88999.0,88986.0,0.69929021]
[1769313908162,0.03,88999.0,88986.0,0.68548592]
[1769313908368,0.03,88999.0,88986.0,0.68373286]
[1769313908564,0.03,88999.0,88986.0,0.67268809]
[1769313909808,0.03,88999.0,88986.0,0.99443197]
[1769313910349,0.03,88999.0,88982.0,0.0001473]
[1769313910350,0.03,88999.0,88984.0,0.32174388]
[1769313910590,0.03,88999.0,88987.0,0.71538795]
[1769313910833,0.03,88997.0,88987.0,1.03713183]
[1769313911241,0.03,88995.0,88987.0,1.03713183]
[1769313911445,0.03,88995.0,88987.0,1.02608661]
[1769313911694,0.03,88995.0,88987.0,1.00399443]
[1769313911865,0.03,88993.0,88987.0,1.00123274]
[1769313913132,0.03,88998.0,88987.0,1.00123274]
[1769313913310,0.03,88996.0,88987.0,1.00123274]
[1769313913539,0.03,88994.0,88987.0,1.00123274]
[1769313913734,0.03,88994.0,88988.0,0.00045525]
[1769313914646,0.03,88993.0,88988.0,0.00045525]
[1769313915587,0.03,88992.0,88989.0,0.65937435]
[1769313915986,0.03,88992.0,88989.0,0.97942629]
[1769313916194,0.03,88992.0,88989.0,0.96837713]
[1769313916392,0.03,88992.0,88989.0,0.95732639]
[1769313916609,0.03,88991.0,88989.0,0.95732639]
[1769313917614,0.03,88998.0,88989.0,0.95732639]
[1769313918114,0.03,88996.0,88989.0,0.95732639]
[1769313918317,0.03,88994.0,88989.0,0.95732639]
[1769313918496,0.03,88994.0,88989.0,0.94351075]
[1769313918706,0.03,88994.0,88989.0,0.92416474]
[1769313918918,0.03,88994.0,88982.0,0.0001473]
[1769313919143,0.03,88994.0,88984.0,0.32162264]
[1769313919350,0.03,88993.0,88986.0,0.98099699]
[1769313920000,0.03,88993.0,88985.0,0.65937435]
[1769313920210,0.28971171,89000.0,88987.0,0.65937435]
[1769313920402,0.28971171,89000.0,88982.0,0.0001473]
[1769313920403,0.03,88999.0,88989.0,0.65937435]
[1769313920586,0.03,88999.0,88990.0,0.000229]
[1769313922103,0.03,88999.0,88989.0,0.65937435]
[1769313922288,0.14243629,88999.0,88989.0,0.65831779]
[1769313922487,0.14243629,88999.0,88989.0,0.63896765]
[1769313922777,0.14243629,88999.0,88988.0,0.32162264]
[1769313923789,0.14243629,88999.0,88984.0,0.65937435]
[1769313923963,0.03,88997.0,88984.0,0.65937435]
[1769313925001,0.03,88999.0,88984.0,0.65937435]
[1769313925239,0.14244604,88999.0,88984.0,0.98099699]
[1769313928529,0.14244604,88999.0,88982.0,0.0001473]
[1769313928942,0.14244604,88999.0,88984.0,0.65937435]
[1769313931967,0.14244604,88999.0,88984.0,0.98099699]
[1769313932518,0.14244604,88999.0,88983.0,0.98099699]
[1769313932750,0.14244604,88999.0,88985.0,1.01980138]
[1769313934358,0.03,88997.0,88982.0,0.0001473]
[1769313934557,0.03,88997.0,88982.0,1.01994868]
[1769313934772,0.03,88997.0,88982.0,0.0001473]
[1769313934986,0.03,88997.0,88983.0,1.01980138]
[1769313935343,0.03,88996.0,88982.0,0.0001473]
[1769313935536,0.03,88996.0,88983.0,0.69745791]
[1769313935874,0.03,88996.0,88984.0,1.01980138]
[1769313936414,0.03,88995.0,88984.0,1.01980138]
[1769313937732,0.03,88994.0,88984.0,1.01980138]
[1769313938949,0.11246085,88999.0,88984.0,1.01980138]
[1769313938950,0.03,88993.0,88984.0,1.01980138]
[1769313940107,0.03,88998.0,88984.0,1.01980138]
[1769313940610,0.03,88996.0,88984.0,1.01980138]
[1769313941064,0.03,88993.0,88984.0,1.01980138]
[1769313941418,0.05102411,88993.0,88984.0,1.01980138]
[1769313944177,0.05102411,88999.0,88984.0,1.01980138]
[1769313944374,0.03,88997.0,88984.0,1.01980138]
[1769313944614,0.03,88995.0,88984.0,1.01980138]
[1769313944821,0.03,88993.0,88984.0,1.01980138]
[1769313945799,0.03,88992.0,88984.0,1.01980138]
[1769313946842,0.03,88991.0,88984.0,1.01980138]
[1769313947046,0.5707899,89000.0,88984.0,1.01980138]
[1769313947246,0.5707899,89000.0,88985.0,0.02060905]
[1769313948234,0.03,88999.0,88985.0,0.02060905]
[1769313959204,0.14249815,88999.0,88985.0,0.02060905]
[1769313961344,0.03,88999.0,88984.0,0.02060905]
[1769313961514,0.1424898,88999.0,88986.0,0.32234347]
[1769313961703,0.03,88999.0,88987.0,0.02060835]
[1769313962926,0.03,88999.0,88989.0,0.31805498]
[1769313963122,0.03,88999.0,88990.0,0.0194746]
[1769313963326,0.03,88999.0,88990.0,0.01547844]
[1769313963525,0.03,88999.0,88990.0,0.01148179]
[1769313963775,0.28967144,89000.0,88990.0,0.00919777]
[1769313964070,0.28967144,89000.0,88992.0,0.31805498]
[1769313964269,0.03,89008.0,88992.0,0.31805498]
[1769313964500,0.14247032,89008.0,88992.0,0.31805498]
[1769313965462,0.03,89001.0,88992.0,1.00769014]
[1769313966862,0.03,89000.0,88993.0,0.31805498]
[1769313967796,0.03,89007.0,88993.0,0.31805498]
[1769313968199,0.03,89002.0,88993.0,0.31805498]
[1769313969310,0.03,89002.0,88994.0,0.00079999]
[1769313971494,0.03,89002.0,88994.0,0.00192366]
[1769313972053,0.03,89002.0,88994.0,0.32676509]
[1769313972294,0.03,89002.0,88994.0,1.00769014]
[1769313973358,0.03,89002.0,88995.0,0.00758635]
[1769313976149,0.03,89001.0,88995.0,0.00758635]
[1769313977275,0.03,89009.0,88995.0,0.00758635]
[1769313977953,0.03,89009.0,88995.0,1.02211783]
[1769313978172,0.03,89008.0,88994.0,0.01123671]
[1769313978323,0.09934808,89010.0,88996.0,0.01123646]
[1769313978522,0.09934808,89010.0,88997.0,1.01533245]
[1769313978732,0.09934808,89010.0,88997.0,1.02576781]
[1769313978951,0.09934808,89010.0,88997.0,1.01453148]
[1769313979134,0.03,89009.0,88997.0,1.01453148]
[1769313979541,0.03,89009.0,88997.0,1.02576781]
[1769313979757,0.03,89009.0,88998.0,0.00789626]
[1769313981181,0.0414185,89009.0,88998.0,0.00789626]
[1769313982658,0.0414185,89009.0,88997.0,1.01453148]
[1769313982851,0.0414185,89009.0,88992.0,0.17264]
[1769313983057,0.0414185,89009.0,88993.0,0.00169547]
[1769313983257,0.0414185,89009.0,88993.0,1.01622695]
[1769313983480,0.0414185,89009.0,88993.0,1.01453148]
[1769313987608,0.0414185,89009.0,88993.0,0.68070409]
[1769313987809,0.0414185,89009.0,88994.0,1.01453148]
[1769313989039,0.03,89003.0,88992.0,0.17264]
[1769313991038,0.03,89001.0,88992.0,0.17264]
[1769313994496,0.11413882,89002.0,88992.0,0.17264]
[1769314008120,0.03,89006.0,88992.0,0.17264]
[1769314008654,0.03,89006.0,88992.0,0.18387696]
[1769314008853,0.03,89006.0,88992.0,0.17264]
[1769314011779,0.03,89006.0,88993.0,0.62354536]
[1769314011959,0.0414185,89009.0,88993.0,0.62354536]
[1769314012977,0.22756949,89009.0,88993.0,0.62354536]
[1769314015305,0.31666009,89012.0,88994.0,0.01197029]
[1769314015523,0.31666009,89012.0,88994.0,0.93933155]
[1769314015524,0.28963394,89010.0,88994.0,0.93933155]
[1769314015725,0.28963394,89010.0,88995.0,0.01197055]
[1769314016336,0.79244502,89010.0,88994.0,0.93933155]
[1769314021501,0.60629403,89010.0,88994.0,0.31578619]
[1769314021747,0.18615099,89009.0,88994.0,0.31578619]
[1769314023928,0.18615099,89009.0,88983.0,0.05618932]
[1769314023929,0.18615099,89001.0,88985.0,0.1726]
[1769314024135,0.01123519,89006.0,88986.0,0.0114775]
[1769314024136,0.28963394,88995.0,88986.0,0.0114775]
[1769314024346,0.28963394,88995.0,88986.0,0.00627738]
[1769314024557,0.33562401,88998.0,88986.0,0.00330526]
[1769314025241,0.28963394,88996.0,88986.0,0.00330526]
[1769314025444,0.03,88995.0,88986.0,0.00330526]
[1769314026477,0.03,88996.0,88986.0,0.00330526]
[1769314026678,0.33562401,88998.0,88986.0,0.00330526]
[1769314027417,0.03,88997.0,88986.0,0.00330526]
[1769314030161,0.03,88997.0,88983.0,0.00330537]
[1769314031431,0.03,88997.0,88983.0,0.00992736]
[1769314032196,0.11821168,88998.0,88983.0,0.00992736]
[1769314033324,0.11821168,88998.0,88982.0,0.1727473]
[1769314033325,0.03,88992.0,88982.0,0.1727473]
[1769314036997,0.0621058,88990.0,88982.0,0.1727473]
[1769314037198,0.0621058,88990.0,88982.0,0.1720085]
[1769314037468,0.0621058,88990.0,88982.0,0.16680408]
[1769314037618,0.0621058,88990.0,88982.0,0.16565238]
[1769314038007,0.03,88990.0,88982.0,0.1653161]
[1769314038179,0.32186868,88992.0,88982.0,0.16396778]
[1769314038481,0.28963394,88993.0,88982.0,0.16396778]
[1769314038714,0.00965783,88992.0,88982.0,0.16396778]
[1769314039263,0.03,88991.0,88982.0,0.16396778]
[1769314040961,0.03,88991.0,88982.0,0.1635529]
[1769314041158,0.03,88991.0,88982.0,0.15983245]
[1769314041363,0.03,88991.0,88982.0,0.1546234]
[1769314041568,0.03,88991.0,88982.0,0.15015811]
[1769314041712,0.03,88991.0,88982.0,0.14420383]
[1769314041917,0.03,88991.0,88982.0,0.1397377]
[1769314042364,0.03,88991.0,88982.0,0.13566579]
[1769314042665,0.03,88991.0,88982.0,0.1288778]
[1769314042869,0.03,88991.0,88982.0,0.12480426]
[1769314043030,0.03,88991.0,88982.0,0.12140921]
[1769314043366,0.03,88991.0,88982.0,0.11529713]
[1769314043529,0.03,88991.0,88982.0,0.1112217]
[1769314043746,0.03,88991.0,88982.0,0.10646632]
[1769314043954,0.03,88991.0,88982.0,0.10578692]
[1769314044155,0.03,88981.0,88976.0,8.005e-05]
[1769314044355,0.03,88979.0,88976.0,8.005e-05]
[1769314045380,0.28963394,88986.0,88976.0,8.005e-05]
[1769314045381,0.03,88978.0,88976.0,8.005e-05]
[1769314046529,0.28963394,88986.0,88976.0,8.005e-05]
[1769314046530,0.03,88977.0,88976.0,8.005e-05]
[1769314046749,0.28963394,88986.0,88976.0,8.005e-05]
[1769314047621,0.03,88985.0,88976.0,8.005e-05]
[1769314050847,0.03965783,88985.0,88976.0,8.005e-05]
[1769314054073,0.03,88983.0,88976.0,8.005e-05]
[1769314054913,0.03,88981.0,88976.0,8.005e-05]
[1769314056006,0.03,88980.0,88976.0,8.005e-05]
[1769314056678,0.03,88980.0,88976.0,0.32454227]
[1769314057127,0.03,88979.0,88976.0,0.32454227]
[1769314057362,0.03,88979.0,88976.0,0.32426372]
[1769314057552,0.03,88979.0,88976.0,0.32182653]
[1769314057832,0.03,88979.0,88976.0,0.31369949]
[1769314057986,0.03,88986.0,88976.0,0.30800734]
[1769314058188,0.03,88984.0,88976.0,0.30312624]
[1769314058393,0.03,88982.0,88973.0,0.0001473]
[1769314058591,0.03,88980.0,88973.0,0.0001473]
[1769314059594,9.606e-05,88982.0,88973.0,0.0001473]
[1769314060160,0.03,88981.0,88973.0,0.0001473]
[1769314060297,0.03,88981.0,88973.0,0.00281965]
[1769314060494,0.03,88981.0,88973.0,0.00119191]
[1769314060733,0.03,88981.0,88972.0,0.00119192]
[1769314061135,0.03,88980.0,88972.0,0.00119192]
[1769314062145,0.03,88979.0,88972.0,0.00119192]
[1769314063072,9.606e-05,88982.0,88972.0,0.00119192]
[1769314063898,0.28976401,88990.0,88972.0,0.01233232]
[1769314064105,0.03,88988.0,88972.0,0.01242838]
[1769314064746,0.03,88988.0,88972.0,9.606e-05]
[1769314065684,0.03,88989.0,88972.0,0.01772353]
[1769314065886,0.03,88989.0,88974.0,0.32446222]
[1769314066085,0.03,88989.0,88975.0,0.33639147]
[1769314066310,0.03,88989.0,88975.0,0.32039169]
[1769314066557,0.03,88989.0,88975.0,0.31387744]
[1769314066730,0.03,88989.0,88975.0,0.30817606]
[1769314066929,0.03,88989.0,88975.0,0.30165858]
[1769314067158,0.03,88989.0,88975.0,0.29921408]
[1769314067331,0.03,88989.0,88976.0,0.00361323]
[1769314069708,0.03,88987.0,88976.0,0.00361323]
[1769314069915,0.03,88985.0,88976.0,0.00361323]
[1769314070135,0.03,88983.0,88976.0,0.00361323]
[1769314070353,0.03,88981.0,88975.0,0.29921408]
[1769314070663,0.03,88981.0,88975.0,0.29907965]
[1769314070939,0.03,88981.0,88975.0,0.29418761]
[1769314071110,0.03,88981.0,88975.0,0.28766339]
[1769314071252,0.12788038,88984.0,88972.0,9.606e-05]
[1769314071454,0.31976401,88982.0,88972.0,9.606e-05]
[1769314071655,0.03,88980.0,88972.0,9.606e-05]
[1769314072723,0.00732567,88979.0,88972.0,9.606e-05]
[1769314072914,0.03,88978.0,88972.0,9.606e-05]
[1769314073869,0.03,88980.0,88972.0,9.606e-05]
[1769314074073,0.28976401,88982.0,88972.0,9.606e-05]
[1769314074074,0.03,88978.0,88972.0,9.606e-05]
[1769314074866,0.03,88978.0,88966.0,0.31710143]
[1769314075076,0.03,88977.0,88966.0,0.31710143]
[1769314076341,0.03,88976.0,88966.0,0.31710143]
[1769314077279,0.11552988,88982.0,88966.0,0.31710143]
[1769314077526,0.03,88981.0,88966.0,0.31710143]
[1769314081043,0.03,88981.0,88967.0,0.32446222]
[1769314081407,0.03,88985.0,88967.0,0.32446222]
[1769314081634,0.34110429,88986.0,88967.0,0.32446222]
[1769314081635,0.03,88979.0,88967.0,0.32446222]
[1769314084004,0.03008005,88979.0,88967.0,0.32446222]
[1769314084707,0.03,88978.0,88967.0,0.32446222]
[1769314085501,8.005e-05,88979.0,88967.0,0.32446222]
[1769314087471,0.03008005,88979.0,88967.0,0.32446222]
[1769314090437,0.03,88978.0,88967.0,0.32446222]
[1769314091729,0.03,88977.0,88967.0,0.32446222]
[1769314092604,0.03,88976.0,88967.0,0.32446222]
[1769314092815,0.03,88976.0,88967.0,0.3237828]
[1769314093042,0.03,88966.0,88964.0,0.0001473]
[1769314093573,0.00047934,88978.0,88964.0,0.0001473]
[1769314093946,0.03047934,88978.0,88964.0,0.0001473]
[1769314094495,0.03,88978.0,88964.0,0.0001473]
[1769314094710,0.03,88978.0,88966.0,0.32126187]
[1769314095118,0.03,88979.0,88966.0,0.32126187]
[1769314095263,0.03,88979.0,88967.0,0.32126187]
[1769314095501,0.03,88979.0,88968.0,0.00984007]
[1769314096000,0.03,88978.0,88968.0,0.00984007]
[1769314096988,0.03,88983.0,88967.0,0.32126187]
[1769314097194,0.03,88983.0,88967.0,0.31738905]
[1769314097553,0.03,88983.0,88967.0,0.31003929]
[1769314097761,0.03,88983.0,88967.0,0.30432225]
[1769314097945,0.03,88983.0,88967.0,0.29860472]
[1769314098143,0.03,88982.0,88967.0,0.29697105]
[1769314098323,0.03,88982.0,88967.0,0.2928867]
[1769314098490,0.03,88982.0,88967.0,0.28716819]
[1769314098700,0.03,88982.0,88967.0,0.28063215]
[1769314099059,0.03,88982.0,88967.0,0.27818097]
[1769314099272,0.03,88983.0,88967.0,0.27818097]
[1769314100011,0.14234337,88983.0,88967.0,0.27818097]
[1769314100210,0.03,88981.0,88967.0,0.27818097]
[1769314100680,0.28976401,88990.0,88974.0,0.32126187]
[1769314100997,0.11231441,88989.0,88977.0,0.32126187]
[1769314101198,0.03,88988.0,88977.0,0.32126187]
[1769314101498,0.03,88988.0,88977.0,0.32027884]
[1769314101839,0.03,88988.0,88978.0,0.32126187]
[1769314103598,0.03,88989.0,88978.0,0.32126187]
[1769314105050,0.00124922,88988.0,88978.0,0.31717458]
[1769314105270,0.03,88986.0,88969.0,0.60168246]
[1769314105489,0.03,88986.0,88971.0,0.32126187]
[1769314105490,0.04123772,88986.0,88971.0,0.32126187]
[1769314105709,0.03,88984.0,88971.0,0.32126187]
[1769314105858,0.03,88982.0,88971.0,0.32126187]
[1769314106057,0.03,88982.0,88966.0,8.005e-05]
[1769314106371,0.32101323,88980.0,88966.0,8.005e-05]
[1769314107035,0.33225171,88980.0,88966.0,8.005e-05]
[1769314107240,0.03,88978.0,88966.0,8.005e-05]
[1769314107442,0.04123873,88978.0,88966.0,8.005e-05]
[1769314107816,0.03,88978.0,88966.0,8.005e-05]
[1769314108364,0.03,88979.0,88966.0,8.005e-05]
[1769314108736,0.11662326,88980.0,88966.0,8.005e-05]
[1769314108932,0.3307258,88979.0,88966.0,8.005e-05]
[1769314109194,0.3194872,88979.0,88966.0,8.005e-05]
[1769314125975,0.03,88983.0,88966.0,8.005e-05]
[1769314126186,0.142344,88983.0,88966.0,8.005e-05]
[1769314129905,0.142344,88983.0,88966.0,0.35443224]
[1769314130120,0.142344,88983.0,88966.0,0.94399038]
[1769314133698,0.03,88980.0,88966.0,0.94399038]
[1769314134368,0.31979353,88980.0,88966.0,0.94399038]
[1769314134572,0.03,88978.0,88966.0,0.94399038]
[1769314139863,0.03,88979.0,88966.0,0.94399038]
[1769314140059,0.1424112,88979.0,88966.0,0.94399038]
[1769314141391,0.1424112,88979.0,88966.0,8.005e-05]
[1769314141611,0.1536498,88979.0,88966.0,8.005e-05]
[1769314141812,0.03,88977.0,88966.0,8.005e-05]
[1769314142023,0.03,88975.0,88966.0,8.005e-05]
[1769314144212,0.03,88974.0,88966.0,8.005e-05]
[1769314145342,0.03,88976.0,88966.0,8.005e-05]
[1769314145750,0.01123822,88982.0,88966.0,8.005e-05]
[1769314145751,0.08992889,88988.0,88976.0,0.01]
[1769314145977,0.11241645,88987.0,88976.0,0.00918254]
[1769314146157,0.03,88983.0,88976.0,0.00476871]
[1769314146319,0.14241645,88983.0,88970.0,0.61452068]
[1769314146520,0.03,88981.0,88971.0,0.32571921]
[1769314146722,0.14241645,88981.0,88971.0,0.32148906]
[1769314146944,0.03,88979.0,88971.0,0.93390119]
[1769314147164,0.14241645,88979.0,88971.0,0.9301957]
[1769314147360,0.14241645,88979.0,88966.0,8.005e-05]
[1769314147361,0.03,88977.0,88967.0,0.32942371]
[1769314147507,0.03,88977.0,88975.0,0.61452068]
[1769314147713,0.03,88977.0,88975.0,0.94236033]
[1769314148079,0.03,88977.0,88975.0,0.93708385]
[1769314148205,0.03,88977.0,88975.0,0.9307514]
[1769314148418,0.0337225,88985.0,88975.0,0.9265286]
[1769314148419,0.03,88978.0,88975.0,0.9265286]
[1769314148625,0.14241645,88978.0,88975.0,0.91933345]
[1769314148849,0.03,88978.0,88970.0,0.94394439]
[1769314149464,0.03,88983.0,88970.0,0.94394439]
[1769314151536,0.03,88983.0,88970.0,0.61452068]
[1769314151736,0.03,88983.0,88971.0,0.32942371]
[1769314152126,0.03,88983.0,88971.0,0.32885716]
[1769314152330,0.03,88983.0,88971.0,0.32780031]
[1769314153694,0.03,88983.0,88973.0,0.32153092]
[1769314153895,0.03,88983.0,88973.0,0.93137252]
[1769314154100,0.03,88983.0,88973.0,0.92291688]
[1769314154299,0.03,88983.0,88973.0,0.91920085]
[1769314154802,0.03,88982.0,88973.0,0.91920085]
[1769314157637,0.03,88982.0,88973.0,0.91726242]
[1769314158724,0.03,88982.0,88973.0,0.91621046]
[1769314160753,0.03,88986.0,88973.0,0.91621046]
[1769314160972,0.03,88986.0,88973.0,0.91460841]
[1769314161589,0.03,88984.0,88973.0,0.91460841]
[1769314162320,0.03,88984.0,88966.0,0.01132029]
[1769314162490,0.03,88984.0,88969.0,0.32153092]
[1769314162714,0.0337225,88986.0,88972.0,0.61723976]
[1769314162715,0.03,88983.0,88972.0,0.61723976]
[1769314162937,0.03,88983.0,88974.0,0.61723976]
[1769314163123,0.03,88983.0,88976.0,0.61723976]
[1769314163309,0.03,88983.0,88976.0,0.93590698]
[1769314163473,0.03,88983.0,88976.0,0.9337591]
[1769314163694,0.03,88982.0,88978.0,0.61723976]
[1769314163881,0.03,88982.0,88978.0,0.93518948]
[1769314164087,0.03,88982.0,88978.0,0.93089105]
[1769314164321,0.03,88982.0,88978.0,0.93029696]
[1769314164520,0.03,88982.0,88978.0,0.926732]
[1769314164734,0.03,88981.0,88970.0,0.30103327]
[1769314164984,0.03,88981.0,88918.0,0.05600745]
[1769314164985,0.0001473,88995.0,88977.0,0.06743313]
[1769314165157,0.0001473,88995.0,88980.0,0.28979353]
[1769314165673,0.0001473,88995.0,88978.0,0.01123873]
[1769314165674,0.0001473,88995.0,88983.0,0.61723976]
[1769314165830,0.0001473,88995.0,88986.0,0.32153092]
[1769314166029,0.0001473,88995.0,88986.0,0.93847575]
[1769314170021,0.0001473,88995.0,88987.0,0.61723976]
[1769314170948,0.0001473,88995.0,88989.0,0.93877068]
[1769314171148,0.03,88999.0,88977.0,0.01123885]
[1769314171366,0.03,88999.0,88979.0,0.32153092]
[1769314171566,0.03371637,89000.0,88981.0,0.61723976]
[1769314171780,0.03371637,89000.0,88984.0,0.32153092]
[1769314171950,0.03371637,89000.0,88987.0,0.61723976]
[1769314172154,0.03371637,89000.0,88989.0,0.61723976]
[1769314172415,0.3235099,89000.0,88990.0,0.93877068]
[1769314172623,0.03371637,89000.0,88990.0,0.93877068]
[1769314173075,0.03371637,89000.0,88991.0,0.5620738]
[1769314173827,0.03371637,89000.0,88992.0,0.5620738]
[1769314174569,0.0001473,89004.0,88992.0,0.56195141]
[1769314174744,0.0001473,89004.0,88992.0,0.56106288]
[1769314175158,0.0001473,89004.0,88992.0,0.56040019]
[1769314175364,0.0001473,89004.0,88992.0,0.55654757]
[1769314175568,0.0001473,89004.0,88992.0,0.55192436]
[1769314175908,0.0301473,89004.0,88992.0,0.54344824]
[1769314176142,0.0301473,89004.0,88992.0,0.54036594]
[1769314176554,0.0301473,89004.0,88992.0,0.54020044]
[1769314176761,0.0001473,89004.0,88992.0,0.54020044]
[1769314177127,0.03,89006.0,88994.0,0.5620738]
[1769314177376,0.03,89006.0,88996.0,0.5620738]
[1769314177565,0.03,89006.0,88990.0,0.28964219]
[1769314177566,0.03,89006.0,88998.0,0.91142283]
[1769314177727,0.03,89005.0,88998.0,0.91142283]
[1769314177928,0.03,89005.0,88998.0,0.9083407]
[1769314178254,0.03,89005.0,88998.0,0.90448798]
[1769314178466,0.03,89005.0,88998.0,0.90140576]
[1769314178905,0.03,89009.0,88998.0,0.90140576]
[1769314179039,0.03014254,89009.0,88998.0,0.90140576]
[1769314180816,0.04137735,89009.0,88998.0,0.90140576]
[1769314181151,0.03,89007.0,88998.0,0.90140576]
[1769314181365,0.04123507,89007.0,88984.0,0.34934903]
[1769314181579,0.03,89004.0,88987.0,0.34934903]
[1769314181786,0.03,89004.0,88988.0,0.92240002]
[1769314181951,0.03,89004.0,88982.0,0.0001473]
[1769314182156,0.03,89004.0,88982.0,0.01112524]
[1769314182499,0.03,89004.0,88987.0,0.5620738]
[1769314182709,0.03,89003.0,88987.0,0.5620738]
[1769314183007,0.03,89003.0,88988.0,0.0109772]
[1769314183572,0.45813558,89005.0,88987.0,0.5620738]
[1769314184185,0.45813558,89005.0,88988.0,0.01097569]
[1769314184713,0.01123494,89008.0,88982.0,0.0001473]
[1769314184714,0.03,89000.0,88982.0,0.0001473]
[1769314185032,0.03,89000.0,88984.0,0.91142283]
[1769314187292,0.03,89000.0,88985.0,0.5620738]
[1769314190003,0.03,88999.0,88985.0,0.34934903]
[1769314191015,0.45813558,89003.0,88985.0,0.34934903]
[1769314192928,0.03,89001.0,88985.0,0.34934903]
[1769314196062,0.03,89000.0,88985.0,0.34934903]
[1769314196268,0.45813558,89000.0,88984.0,0.5620738]
[1769314201243,0.03,88998.0,88982.0,0.0001473]